Cogmind - Beta 13 @@@ ROGUE MODE // 2024.04.16 @ 23:47:20 Player: Red_Zig Result: Destroyed by G-47 Trooper with Particle Gun Performance ------------- Evolutions (3) 1500 Regions Visited (6) 1200 Robots Destroyed (43) 215 Value Destroyed (1219) 1219 Prototype IDs (26) 520 Alien Tech Used (0) 0 Bonus (300) 300 TOTAL SCORE: 4954 Bonus ------- Aligned with FarCom 300 Cogmind --------- Core Integrity 0/700 Matter 107/300 Energy 6/100 System Corruption 0% Temperature Cool (18) Movement Core (200) Ox3 Location -7/Factory Parts ------- > --- POWER (1) -------- (None) > --- PROPULSION (5) --- (None) > --- UTILITY (5) ------ Signal Interpreter Active Sensor Suite Advanced ECM Suite > --- WEAPON (2) ------- Makeshift Hammer > --- INVENTORY (5) ---- Light Nuclear Core Advanced ECM Suite Cloak of Protection System Restoration Module Peak State ------------ > --- POWER ------------ Light Angular Momentum Engine > --- PROPULSION ------- Titanium Leg Improved Titanium Leg Improved Titanium Leg Improved Titanium Leg Improved Titanium Leg > --- UTILITY ---------- Medium Storage Unit Signal Interpreter Advanced ECM Suite Hardened Medium Armor Plating System Restoration Module > --- WEAPON ----------- Minigun Enhanced Autogun > --- INVENTORY -------- Light Deuterium Engine Improved Flight Unit Improved Flight Unit Improved Flight Unit Cloak of Protection Shield Generator System Restoration Module Sensor Drone Bay Rocket Launcher Makeshift Hammer [Rating: 48] Favorites ----------- Power Ion Engine Engine Ion Engine Power Core Light Nuclear Core Propulsion Light Treads Treads Light Treads Leg Improved Titanium Leg Wheel Wheel Flight Unit Improved Flight Unit Utility Medium Storage Unit Device System Restoration Module Storage Medium Storage Unit Processor Signal Interpreter Protection Hardened Medium Armor Plating Weapon Assault Rifle Ballistic Gun Assault Rifle Ballistic Cannon Flak Cannon Launcher Rocket Launcher Impact Weapon Makeshift Hammer Build | -11 -10 -10 -10 -9 -8 -7 ------- Run | Yrd Mat Min Exi Min Mat Fac Slots Evolved 6 | . . . . . 4 2 Power . | . . . . . . . Propulsion 3 | . . . . . 2 1 Utility 3 | . . . . . 2 1 Weapon . | . . . . . . . Parts Attached 59 | 6 10 . 2 3 23 15 Power 7 | 1 . . 1 . 2 3 Engine 5 | 1 . . 1 . 2 1 Core 2 | . . . . . . 2 Reactor . | . . . . . . . Propulsion 22 | 2 4 . . . 13 3 Treads 9 | 2 3 . . . 4 . Leg 6 | . . . . . 5 1 Wheel 2 | . . . . . . 2 Hover . | . . . . . . . Flight 5 | . 1 . . . 4 . Utility 12 | 1 3 . . . 3 5 Device 6 | . . . . . 2 4 Storage 2 | 1 1 . . . . . Processor 1 | . 1 . . . . . Hackware . | . . . . . . . Protection 3 | . 1 . . . 1 1 Artifact . | . . . . . . . Weapon 18 | 2 3 . 1 3 5 4 Energy Gun . | . . . . . . . Energy Cannon . | . . . . . . . Ballistic Gun 11 | 2 3 . . 1 3 2 Ballistic Cannon 1 | . . . . . 1 . Launcher 4 | . . . 1 1 1 1 Special Weapon . | . . . . . . . Impact Weapon 2 | . . . . 1 . 1 Slashing Weapon . | . . . . . . . Piercing Weapon . | . . . . . . . Special Melee Weapon . | . . . . . . . Unidentified Prototypes 3 | . 1 . . . 1 1 Parts Lost 18 | . 1 . . 1 1 15 Power 2 | . . . . . . 2 Propulsion 7 | . . . . . . 7 Utility 4 | . 1 . . . . 3 Weapon 5 | . . . . 1 1 3 Highest Loss Streak 11 | . 1 . . 1 1 11 To Critical Strikes . | . . . . . . . Average Slot Usage (%) 97 | . 96 100 100 100 98 89 Engine 12 | . 14 14 14 14 9 5 Treads 21 | . 27 28 28 28 5 . Leg 7 | . . . . . 28 29 Device 3 | . . . . . 9 12 Storage 12 | . 14 14 14 14 9 6 Processor 9 | . 1 14 14 14 9 7 Protection 3 | . 8 . . . 7 5 Ballistic Gun 22 | . 28 28 28 17 9 12 Launcher 1 | . . . . 7 1 . Naked Turns . | . . . . . . . Heaviest Build 42 | 13 19 19 19 19 42 37 Greatest Support 97 | 40 40 40 40 40 80 97 Greatest Overweight (x) 3 | . . . . . . 3 Average Overweight (x) . | . . . . . . . Largest Inventory Capacity 10 | 8 10 10 10 10 10 10 Average Capacity 9 | 6 8 10 10 10 10 9 Most Carried 10 | 6 10 10 10 10 10 10 Average Carried 9 | 3 7 9 9 9 9 9 Final Capacity 10 | 8 10 10 10 10 10 5 Final Carried 10 | 6 10 10 10 9 10 4 Class Distribution -------------------- 95% | Mutant 4% | Scavenger-Mutant Dominant Class ---------------- Mutant | -10/Materials Mutant | -10/Mines Mutant | -10/Exiles Mutant | -9/Mines Mutant | -8/Materials Mutant | -7/Factory Resources | -11 -10 -10 -10 -9 -8 -7 ----------- Run | Yrd Mat Min Exi Min Mat Fac Matter Collected 1411 | 228 349 . . 74 350 410 Remotely . | . . . . . . . Salvage Created 1195 | . 397 . . 44 310 444 Parts 96 | . 34 2 . 1 20 39 Haulers Intercepted 1 | . 1 . . . . . Recyclers Shooed 2 | . 2 . . . . . Parts Field Recycled . | . . . . . . . Retrieved Matter . | . . . . . . . Parts Self-Destructed . | . . . . . . . Prevented . | . . . . . . . Kills | -11 -10 -10 -10 -9 -8 -7 ------- Run | Yrd Mat Min Exi Min Mat Fac Combat Hostiles Destroyed 33 | . 8 . . 2 8 15 Guns 23 | . 8 . . . 3 12 Cannons 2 | . . . . . 2 . AOE 7 | . . . . 1 3 3 Classes Destroyed 9 | . 5 . . 1 2 1 Worker 4 | . 2 1 . . . 1 Builder 2 | . . . . . 1 1 Hauler 1 | . 1 . . . . . Operator 1 | . . . . . 1 . Watcher 2 | . 2 . . . . . Swarmer 16 | . 3 . . . . 13 Grunt 14 | . 5 . . 1 8 . Duelist 1 | . . . . 1 . . Sentry 2 | . . . . . . 2 Best Kill Streak 9 | . 3 1 . 1 3 9 Combat Bots Only 8 | . 3 . . 2 3 8 Max Kills in Single Turn 3 | . 2 1 . 1 3 2 Gunslinging . | . . . . . . . Exploded 3 | . . . . 1 3 2 Melee . | . . . . . . . Uniques/NPCs Destroyed . | . . . . . . . Combat | -11 -10 -10 -10 -9 -8 -7 -------- Run | Yrd Mat Min Exi Min Mat Fac Hostile Shots Fired 301 | . 47 . . 15 42 197 Missed 96 | . 16 . . 2 9 69 Damage Taken 3696 | . 401 . . 409 531 2355 Core 952 | . 57 . . 137 54 704 Absorbed by Shields . | . . . . . . . Core Remaining (%) 70 | 100 . . . 22 90 . Volleys Fired 126 | . 42 . 1 5 34 44 Largest 2 | . 2 . 2 2 2 2 Hottest 67 | . 40 . 40 53 67 58 Shots Fired 227 | . 84 . 2 8 57 76 Gun 198 | . 84 . 2 6 38 68 Cannon 14 | . . . . . 14 . Launcher 15 | . . . . 2 5 8 Special . | . . . . . . . Kinetic 212 | . 84 . 2 6 52 68 Thermal . | . . . . . . . Explosive 15 | . . . . 2 5 8 Electromagnetic . | . . . . . . . Robot Hit Streak 13 | . 8 . . 7 6 13 Robot Miss Streak 6 | . 4 . . 1 6 6 Penetration Max . | . . . . . . . Secondary Targets 2 | . 1 . . . . 1 Max Gunslinging Chain 1 | . 1 . . . . 1 Shots Hit Robots 147 | . 48 . . 10 44 45 Core Hits 91 | . 24 1 . 3 27 36 Critical Kills . | . . . . . . . Critical Parts Destroyed . | . . . . . . . Critical Strikes 1 | . . . . 1 . . Smash 1 | . . . . 1 . . Melee Attacks 7 | . . . . 7 . . Impact 7 | . . . . 7 . . Slashing . | . . . . . . . Piercing . | . . . . . . . Sneak Attacks . | . . . . . . . Combat Hostiles . | . . . . . . . Follow-up Attacks . | . . . . . . . Damage Inflicted 3026 | . 626 20 . 302 890 1188 Guns 1892 | . 619 . . 55 404 814 Cannons 153 | . . . . . 153 . Explosions 832 | . . . . 125 333 374 Melee 122 | . . . . 122 . . Ramming 27 | . 7 20 . . . . Kinetic 2045 | . 619 . . 55 557 814 Thermal . | . . . . . . . Explosive 832 | . . . . 125 333 374 Electromagnetic . | . . . . . . . Impact 122 | . . . . 122 . . Slashing . | . . . . . . . Piercing . | . . . . . . . Highest Corruption . | . . . . . . . Average Corruption . | . . . . . . . Corruption Purged . | . . . . . . . Corruption Blocked . | . . . . . . . Overload Shots . | . . . . . . . Overflow Damage 8 | . . . . 8 . . Projectiles . | . . . . . . . Explosions . | . . . . . . . Melee 8 | . . . . 8 . . Knockbacks 5 | . . . . 1 4 . Impact 1 | . . . . 1 . . Kinetic 4 | . . . . . 4 . Secondary . | . . . . . . . Self-Inflicted Damage 69 | . . . . 49 20 . Shots 2 | . . . . 1 1 . Rammed 2 | . 1 1 . . . . Targets Rammed 3 | . 1 2 . . . . Kicked . | . . . . . . . Crushed 1 | . . 1 . . . . Highest Temperature 99 | . 24 . . 3 99 32 Average Temperature 21 | . 8 . . 3 33 13 Received Heat Transfer 576 | . 114 . . 18 315 129 Siege Activations . | . . . . . . . Robots Corrupted . | . . . . . . . Combat Hostiles . | . . . . . . . Parts Fried 1 | . . . . 1 . . Impact Corruptions 2 | . . . . 2 . . Robots Melted . | . . . . . . . Combat Hostiles . | . . . . . . . Parts Melted 1 | . 1 . . . . . Heat Transferred . | . . . . . . . Parts Sabotaged . | . . . . . . . Parts Stolen . | . . . . . . . Parts Stripped . | . . . . . . . Power Chain Reactions . | . . . . . . . Alert | -11 -10 -10 -10 -9 -8 -7 ------- Run | Yrd Mat Min Exi Min Mat Fac Peak Influence 281 | . 147 57 . 72 275 281 Initial 57 | . . 57 . . . 49 Average 73 | . 101 34 . 11 112 117 Maximum Alert Level 1 | . . . . . 1 1 Low Security (%) 93 | 100 100 100 . 100 75 84 Level 1 6 | . . . . . 24 15 Level 2 . | . . . . . . . Level 3 . | . . . . . . . Level 4 . | . . . . . . . Level 5 . | . . . . . . . High Security . | . . . . . . . Max Security . | . . . . . . . Squads Dispatched 8 | . . . . . 1 7 Investigation . | . . . . . . . Extermination . | . . . . . . . Reinforcement 5 | . . . . . 1 4 Assault . | . . . . . . . Garrison 3 | . . . . . . 3 Intercept . | . . . . . . . Searches Triggered . | . . . . . . . Construction Impeded 2 | . . . . . 1 1 Haulers Reinforced . | . . . . . . . Active Scanning Responses . | . . . . . . . Cargo Convoy Interrupts . | . . . . . . . Stealth | -11 -10 -10 -10 -9 -8 -7 --------- Run | Yrd Mat Min Exi Min Mat Fac Distress Signals 1 | . . . . . 1 . Communications Jammed . | . . . . . . . Distress Signals . | . . . . . . . Times Spotted 51 | . 15 . . 2 13 21 Peak Tracking Total 7 | . 5 . . 2 3 7 Tactical Retreats 3 | . 1 . . . 2 . Traps | -11 -10 -10 -10 -9 -8 -7 ------- Run | Yrd Mat Min Exi Min Mat Fac Traps Triggered 2 | . 2 . . . . . Indirectly . | . . . . . . . Trap Hack Attempts . | . . . . . . . Triggered . | . . . . . . . Disarmed . | . . . . . . . Reprogrammed . | . . . . . . . Reused . | . . . . . . . Traps Extracted . | . . . . . . . Installed . | . . . . . . . Triggered 1 | . . 1 . . . . Machines | -11 -10 -10 -10 -9 -8 -7 ---------- Run | Yrd Mat Min Exi Min Mat Fac Machines Disabled 1 | . . . . . 1 . Max in Single Turn 1 | . . . . . 1 . Machines Repaired . | . . . . . . . Machines Dismantled . | . . . . . . . Machines Sabotaged . | . . . . . . . Overloaded Fab Kills . | . . . . . . . Hacking | -11 -10 -10 -10 -9 -8 -7 --------- Run | Yrd Mat Min Exi Min Mat Fac Machines Accessed 4 | . 1 . 2 1 . . Terminals 1 | . 1 . . . . . Fabricators . | . . . . . . . Repair Stations . | . . . . . . . Recycling Units . | . . . . . . . Scanalyzers . | . . . . . . . Garrison Access . | . . . . . . . Total Hacks 26 | . 1 . 24 1 . . Successful 25 | . . . 24 1 . . Failed 1 | . 1 . . . . . Catastrophic . | . . . . . . . Database Lockouts . | . . . . . . . Manual 1 | . . . 1 . . . Terminals 1 | . 1 . . . . . Fabricators . | . . . . . . . Repair Stations . | . . . . . . . Recycling Units . | . . . . . . . Scanalyzers . | . . . . . . . Garrison Access . | . . . . . . . Terminal Hacks 25 | . . . 24 1 . . Record 23 | . . . 23 . . . Open Door 1 | . . . . 1 . . Derelict Proto ID Bank 1 | . . . 1 . . . Fabricator Hacks . | . . . . . . . Repair Station Hacks . | . . . . . . . Recycling Unit Hacks . | . . . . . . . Scanalyzer . | . . . . . . . Garrison Access Hacks . | . . . . . . . Unauthorized Hacks . | . . . . . . . Terminals . | . . . . . . . Fabricators . | . . . . . . . Repair Stations . | . . . . . . . Recycling Units . | . . . . . . . Scanalyzers . | . . . . . . . Garrison Access . | . . . . . . . Data Cores Recovered . | . . . . . . . Used . | . . . . . . . Hacking Detections 1 | . 1 . . . . . Full Trace Events . | . . . . . . . Feedback Events . | . . . . . . . Feedback Blocked . | . . . . . . . Robot Schematics Acquired . | . . . . . . . Robots Built . | . . . . . . . Authchips . | . . . . . . . Time . | . . . . . . . Total Robot Build Rating . | . . . . . . . Part Schematics Acquired . | . . . . . . . Parts Built . | . . . . . . . Authchips . | . . . . . . . Time . | . . . . . . . Total Part Build Rating . | . . . . . . . Parts Repaired . | . . . . . . . Time . | . . . . . . . Parts Recycled . | . . . . . . . Recycled Matter . | . . . . . . . Retrieved Matter . | . . . . . . . Retrieved Components . | . . . . . . . Parts Scanalyzed . | . . . . . . . Part Schematics Acquired . | . . . . . . . Parts Damaged . | . . . . . . . Bothacking | -11 -10 -10 -10 -9 -8 -7 ------------ Run | Yrd Mat Min Exi Min Mat Fac Used RIF Installer . | . . . . . . . Robots Hacked . | . . . . . . . Non-combat . | . . . . . . . Combat . | . . . . . . . Robot Hacks Applied . | . . . . . . . Relay Couplers Released . | . . . . . . . Fabnet Peak Effective % . | . . . . . . . Robots Rewired . | . . . . . . . Allies Hacked . | . . . . . . . Hacks Repelled . | . . . . . . . Allies | -11 -10 -10 -10 -9 -8 -7 -------- Run | Yrd Mat Min Exi Min Mat Fac Total Allies . | . . . . . . . Largest Group . | . . . . . . . Highest-Rated Group . | . . . . . . . Highest-Rated Ally . | . . . . . . . Total Orders . | . . . . . . . Ally Attacks . | . . . . . . . Total Damage . | . . . . . . . Kills . | . . . . . . . Allies Corrupted . | . . . . . . . Allies Melted . | . . . . . . . Intel | -11 -10 -10 -10 -9 -8 -7 ------- Run | Yrd Mat Min Exi Min Mat Fac Robot Analysis Total . | . . . . . . . Derelict Logs Recovered 2 | . . 2 . . . . Drone Launches . | . . . . . . . Drone Recoveries . | . . . . . . . Exploration | -11 -10 -10 -10 -9 -8 -7 ------------- Run | Yrd Mat Min Exi Min Mat Fac Turns Passed 3750 | 79 793 819 661 411 432 555 Spaces Moved 2041 | 40 398 503 409 208 159 324 Core 15 | 2 . . . . . 13 Treads 1589 | 38 398 503 409 208 33 . Legs 435 | . . . . . 126 309 Wheels 2 | . . . . . . 2 Hover . | . . . . . . . Flight . | . . . . . . . Fastest Speed 50 | 50 160 160 160 160 130 100 Average Speed 153 | 154 160 160 160 160 136 130 Slowest Speed 200 | 160 160 160 160 160 160 200 Overloaded Moves . | . . . . . . . Propulsion Burnouts . | . . . . . . . Robots Hopped . | . . . . . . . Cave-ins Triggered . | . . . . . . . Exploration Rate (%) 43 | 4 53 96 70 50 19 11 Regions Visited 6 Branch Regions 3 Pre-discovered Areas 1 | . . . 1 . . . Known Exits Taken 5 | . 1 1 1 1 1 . Unknown Exits Taken 1 | 1 . . . . . . Scrap Searched 1 | . . 1 . . . . Spaces Dug . | . . . . . . . Terrain Destroyed 78 | . . . . 26 23 29 Melee . | . . . . . . . Projectile . | . . . . . . . AOE 78 | . . . . 26 23 29 Terrain Rammed . | . . . . . . . Walls Destroyed . | . . . . . . . Machines Disabled . | . . . . . . . Actions | -11 -10 -10 -10 -9 -8 -7 --------- Run | Yrd Mat Min Exi Min Mat Fac Total 2441 | 54 473 517 413 272 313 399 Wait 156 | 3 8 9 . 47 84 5 Move 2035 | 39 397 502 408 207 158 324 Hop . | . . . . . . . Pick Up 23 | 6 6 2 1 1 4 3 Fast Attach 26 | 6 5 . . . 8 7 Attach 10 | . . . . 2 4 4 Detach 3 | . . . . 1 2 . Swap 23 | . 5 . 2 1 11 4 Drop 29 | . 9 2 1 1 8 8 Fire 126 | . 42 . 1 5 34 44 Melee 7 | . . . . 7 . . Ram . | . . . . . . . Kick . | . . . . . . . Crush 3 | . 1 2 . . . . Escape Stasis . | . . . . . . . Rewire . | . . . . . . . Trap . | . . . . . . . Miscellaneous . | . . . . . . . Route ------- -11/Scrapyard -10/Materials (discovered 4 exits: [*Mat x2] / *Min x2) -10/Mines (discovered 3 exits: [*Mat x2] / *Exi) -10/Exiles (discovered 2 exits: *Min x2) -9/Mines -8/Materials -7/Factory History --------- Turn | Location | Event 49 | -11/Scrapyard | Discovered new exit (range 14) 80 | -11/Scrapyard | Entered Materials 215 | -10/Materials | Discovered new exit (range 15) 315 | -10/Materials | Build established: Mutant 384 | -10/Materials | Discovered new exit (range 5) 624 | -10/Materials | Discovered new exit (range 13) 855 | -10/Materials | Discovered new exit (range 12) 871 | -10/Materials | Identified exit to Mines 873 | -10/Materials | Entered Mines 984 | -10/Mines | A weapon hastily lodged in a ceiling crevice suddenly fell to the ground 1009 | -10/Mines | Learned location of 1 exit from Materials 1160 | -10/Mines | Discovered new exit (range 10) 1221 | -10/Mines | Discovered new exit (range 3) 1410 | -10/Mines | Received a Rocket Launcher from a helpful Derelict 1631 | -10/Mines | Learned Materials trap positions 1685 | -10/Mines | Deemed a non-threat by the Exiles lab entrance 1685 | -10/Mines | Discovered new exit (range 5) 1690 | -10/Mines | Identified exit to Exiles 1692 | -10/Mines | Entered Exiles 1731 | -10/Exiles | Met 8R-AWN 1760 | -10/Exiles | Met EX-HEX 1803 | -10/Exiles | Met EX-BIN 1827 | -10/Exiles | Aligned with FarCom system 1828 | -10/Exiles | Given EX-Vault access code 1870 | -10/Exiles | Opened EX-Vault 1886 | -10/Exiles | Found Cloak of Protection 1924 | -10/Exiles | Warned to stay clear of 0b10 Research branches 1967 | -10/Exiles | Met EX-DEC 1974 | -10/Exiles | Learned location of Zion (-6) 2057 | -10/Exiles | Discovered new exit (range 12) 2073 | -10/Exiles | Identified exit to Mines 2334 | -10/Exiles | Discovered exit to Mines (range 14) 2353 | -10/Exiles | Left Exiles lab with Cloak of Protection 2353 | -10/Exiles | Entered Mines 2518 | -9/Mines | Found the Drone Emporium 2525 | -9/Mines | Found Prototype Device 2678 | -9/Mines | Core integrity fell below 50% 2751 | -9/Mines | Discovered new exit (range 9) 2763 | -9/Mines | Identified exit to Materials 2764 | -9/Mines | Entered Materials 2764 | -8/Materials | Evolved 4 slots: Propulsion x2, Utility x2 2765 | -8/Materials | Identified exit to Factory 2766 | -8/Materials | Loaded intel: 14 trap records 3196 | -8/Materials | Entered Factory 3196 | -7/Factory | Evolved 2 slots: Propulsion x1, Utility x1 3504 | -7/Factory | Garrison activated, responded to threat 3569 | -7/Factory | Destroyed 8 combat bots 3569 | -7/Factory | Lost 4 parts (1p2n1u) 3736 | -7/Factory | Core integrity fell below 50% 3748 | -7/Factory | Core integrity fell below 20% 3748 | -7/Factory | Found Prototype Device 3748 | -7/Factory | Identified Active Sensor Suite 3751 | -7/Factory | Destroyed by G-47 Trooper with Particle Gun Last Messages --------------- dispatching reinforcements to area. 03711_ Titanium Leg destroyed. 03713_ Minigun destroyed. 03713_ Imp. Light Armor Plating destroyed. 03718_ Rocket Launcher destroyed. 03720_ Penetrated by Slug. 03720_ System Restoration Module destroyed. 03720_ Critical hit (Blast). 03726_ Slug penetrates Wall. 03728_ Enh. Autogun destroyed. 03728_ Dropped Lgt. Deuterium Engine. 03730_ Dropped Med. Storage Unit. 03731_ Acquired 1 matter. 03733_ The unstable cave ceiling collapses. 03737_ Critical hit (Burn: +37). 03743_ H-61 Shepherd destroyed. 03747_ Dropped Dynamic Insulation System. 03748_ Acquired Prototype Device. 03748_ Identified Active Sensor Suite. 03749_ The unstable cave ceiling collapses. Map ----- +----------------------------------------------------+ | =*=[ #?????? | | ####+### ############+######+######+########?? | | ![ ! # #?# # # #?? | | ===# ^ #?# #! """ # #?? | | [!%# #?# # """"" # ! #?? | | "" %=+ #?# # """"" # #?? | | R [ # #?# # # #?? | | "" [ # #?# k # """ # ! #?? | | "" =[ # ### k # """"" # #?? | | = #* T## # """"" # #?? | | #### ## [ ## # ###########?? | | ???### ### ##########???????????? | | ??????# u #?# #????????????????????? | | ??????# #?# #????????????????????? | | ??????? #?##############????????????????????? | | ######## #???????????????????????????????????? | | # #???????????????????????????????????? | | """ # #???????????????????????????????????? | | """ + #???????????????????????????????????? | | """ # #???????????????????????????????????? | | # gg#???????????????????????????????????? | | """ # #???????##########+#####????????????? | | """ # w #?????### # ####?????????? | | """ # #######; # # ????????? | | " %*x! !! ????????? | | " % *gx =%@ ????????? | | ] + % g ! ! ????????? | | # * g % ????????? | | ######## [ * g o ?????????? | | ?#########"########### ?????????? | | ?# %== ####### ###??????????? | | ?# = #??????##+#+#####????????????? | | ?# #????????????????????????????? | | ?# #????????????????????????????? | | ?# #????????????????????????????? | | ?# #????????????????????????????? | | ?# #????????????????????????????? | | ?# #????????????????????????????? | | ?####################????????????????????????????? | | ?????????????????????????????????????????????????? | | ?????????????????????????????????????????????????? | | ?????????????????????????????????????????????????? | | ?????????????????????????????????????????????????? | | ?????????????????????????????????????????????????? | | ?????????????????????????????????????????????????? | | ?????????????????????????????????????????????????? | | ?????????????????????????????????????????????????? | | ?????????????????????????????????????????????????? | | ?????????????????????????????????????????????????? | | ?????????????????????????????????????????????????? | +----------------------------------------------------+ Best States ------------- Heat Dissipation 34 Energy Generation 18 Energy Capacity 290 Matter Stores 300 Matter Capacity 300 Sight Range 16 Robot Scan Range 20 Terrain Scan Density 10 EM Shielding 2 Armor Coverage 225 Evasion (%) 55 Recoil Reduction 4 Item Schematics ----------------- None Robot Schematics ------------------ None Fabricated ------------ Nothing Alien Tech Used ----------------- None Achievements -------------- None Challenges ------------ None Game ------ Seed EtherialFlightStick Manual? 0 Play Time 00:34:33 Cumulative 31.4 hours Start 2024.04.16 @ 23:11:27 End 2024.04.16 @ 23:47:20 Sessions 1 Manual Loads 0 Difficulty Rogue Special Mode None Game No. 31 Rogue 19 Adventurer 12 Explorer 0 Win Type - Total 0 Types 0/0/0/0/0/0/0/0/0 Lore% 16 Gallery% 31 Achievement% 24 Wizard Run 0 Options --------- Layout 2 ASCII 0 Keyboard 0 Movement Mouse Keybinds 0 Fullscreen 1 Font 24/Smallcaps Map View 50x44 Zoom Use 11% Tactical HUD 1 Map Filters NONE Filters NONE Steam 1 RUN: ed841bfd-2a59-4c6f-adcc-35c19ba4fd08